fUST/lending_fUST_20250120
["ID","MTS","AMOUNT","RATE_DAILY","PERIOD"]
[349581413,1737310232920,-1092.18,0.00021917,3]
[349581414,1737310232930,-500.0,0.00021917,3]
[349581415,1737310232939,-500.0,0.00021917,3]
[349581416,1737310232949,-500.0,0.00021917,3]
[349581417,1737310232958,-500.0,0.00021917,3]
[349581418,1737310232969,-500.0,0.00021917,3]
[349581419,1737310232979,-500.0,0.00021917,3]
[349581420,1737310232988,-500.0,0.00021917,3]
[349581421,1737310232998,-523.21,0.00021917,3]
[349581422,1737310233008,-500.0,0.00021917,3]
[349581423,1737310233018,-385.77,0.00021917,3]
[349581424,1737310233028,-500.0,0.00021917,3]
[349581425,1737310233038,-787.33,0.00021917,3]
[349581426,1737310233048,-500.0,0.00021917,3]
[349581427,1737310233057,-500.0,0.00021917,3]
[349581428,1737310233067,-500.0,0.00021917,3]
[349581429,1737310233078,-500.0,0.00021918,3]
[349581430,1737310233089,-3144.0,0.00021919,2]
[349581431,1737310233099,-152.66516286,0.00021969,2]
[349581432,1737310233110,-249.81141684,0.00021973,2]
[349581433,1737310233120,-500.0,0.00021973,2]
[349581434,1737310233130,-2308.0,0.0002199,2]
[349581435,1737310233140,-395.0,0.0002199,2]
[349581436,1737310233151,-211.0,0.00022,2]
[349581437,1737310233164,-500.0,0.00022053,3]
[349581438,1737310233174,-500.00762011,0.00022054,2]
[349581439,1737310233184,-500.0,0.00022054,3]
[349581440,1737310233195,-500.0,0.00022054,3]
[349581441,1737310233205,-500.0,0.00022054,3]
[349581442,1737310233219,-500.0,0.00022054,3]
[349581443,1737310233229,-156.71,0.00022054,3]
[349581444,1737310233241,-500.0,0.00022054,3]
[349581445,1737310233251,-552.17,0.00022054,3]
[349581446,1737310233262,-500.0,0.00022054,3]
[349581447,1737310233272,-336.15951793,0.00022054,3]
[349581448,1737310233282,-500.0,0.00022054,3]
[349581449,1737310233292,-500.0,0.00022054,3]
[349581450,1737310233302,-500.0,0.00022054,3]
[349581451,1737310233312,-500.0,0.00022054,3]
[349581452,1737310233322,-500.0,0.00022054,3]
[349581453,1737310233332,-500.0,0.00022054,3]
[349581454,1737310233342,-1042.64,0.00022054,3]
[349581455,1737310233352,-338.69148438,0.00022054,3]
[349581456,1737310233363,-761.38,0.00022054,3]
[349581457,1737310233374,-500.0,0.00022054,3]
[349581458,1737310233384,-500.0,0.00022054,3]
[349581459,1737310233394,-3744.49,0.00022054,3]
[349581460,1737310233405,-500.0,0.00022054,3]
[349581461,1737310233416,-500.0,0.00022054,3]
[349581462,1737310233427,-500.0,0.00022054,3]
[349581463,1737310233437,-500.0,0.00022054,3]
[349581464,1737310233447,-500.0,0.00022054,3]
[349581465,1737310233457,-1446.99,0.00022054,3]
[349581466,1737310233472,-500.0,0.00022054,3]
[349581467,1737310233482,-500.0,0.00022054,3]
[349581468,1737310233492,-1092.18,0.00022054,3]
[349581469,1737310233503,-500.0,0.00022054,3]
[349581470,1737310233512,-500.0,0.00022054,3]
[349581471,1737310233523,-500.0,0.00022054,3]
[349581472,1737310233533,-500.0,0.00022054,3]
[349581473,1737310233543,-500.0,0.00022054,3]
[349581474,1737310233554,-500.0,0.00022054,3]
[349581475,1737310233564,-500.0,0.00022054,3]
[349581476,1737310233574,-500.0,0.00022054,3]
[349581477,1737310233584,-787.33,0.00022054,3]
[349581478,1737310233594,-500.0,0.00022054,3]
[349581479,1737310233604,-500.0,0.00022054,3]
[349581480,1737310233614,-347.08,0.0002219,3]
[349581481,1737310233624,-500.0,0.00022191,3]
[349581482,1737310233633,-500.0,0.00022191,3]
[349581483,1737310233643,-500.0,0.00022191,3]
[349581484,1737310233653,-500.0,0.00022191,3]
[349581485,1737310233663,-500.0,0.00022191,3]
[349581486,1737310233674,-633.59,0.00022191,3]
[349581487,1737310233683,-500.0,0.00022191,3]
[349581488,1737310233693,-500.0,0.00022191,3]
[349581489,1737310233703,-500.0,0.00022191,3]
[349581490,1737310233714,-500.0,0.00022191,3]
[349581491,1737310233723,-500.0,0.00022191,3]
[349581492,1737310233733,-500.0,0.00022191,3]
[349581493,1737310233743,-1042.64,0.00022191,3]
[349581494,1737310233753,-761.38,0.00022191,3]
[349581495,1737310233763,-500.0,0.00022191,3]
[349581496,1737310233774,-500.0,0.00022191,3]
[349581497,1737310233784,-3744.49,0.00022191,3]
[349581498,1737310233794,-500.0,0.00022191,3]
[349581499,1737310233803,-500.0,0.00022191,3]
[349581500,1737310233813,-500.0,0.00022191,3]
[349581501,1737310233823,-500.0,0.00022191,3]
[349581502,1737310233833,-500.0,0.00022191,3]
[349581503,1737310233843,-1446.99,0.00022191,3]
[349581504,1737310233853,-500.0,0.00022191,3]
[349581505,1737310233862,-500.0,0.00022191,3]
[349581506,1737310233872,-1092.18,0.00022191,3]
[349581507,1737310233882,-500.0,0.00022191,3]
[349581508,1737310233892,-500.0,0.00022191,3]
[349581509,1737310233902,-500.0,0.00022191,3]
[349581510,1737310233911,-500.0,0.00022191,3]
[349581511,1737310233921,-500.0,0.00022191,3]
[349581512,1737310233931,-500.0,0.00022191,3]
[349581513,1737310233940,-500.0,0.00022191,3]
[349581514,1737310233951,-412.03980874,0.00022191,3]
[349581515,1737310233964,-787.33,0.00022191,3]
[349581516,1737310233974,-500.0,0.00022191,3]
[349581517,1737310233984,-500.0,0.00022191,3]
[349581518,1737310233994,-211.0,0.00022192,2]
[349581519,1737310234005,-500.0,0.00022328,3]
[349581520,1737310234016,-500.0,0.00022328,3]
[349581521,1737310234027,-500.0,0.00022328,3]
[349581522,1737310234038,-362.9,0.00022328,3]
[349581523,1737310234048,-500.0,0.00022328,3]
[349581524,1737310234058,-500.0,0.00022328,3]
[349581525,1737310234069,-500.0,0.00022328,3]
[349581526,1737310234079,-500.0,0.00022328,3]
[349581527,1737310234089,-261.26,0.00022328,3]
[349581528,1737310234098,-500.0,0.00022328,3]
[349581529,1737310234108,-1042.64,0.00022328,3]
[349581530,1737310234117,-761.38,0.00022328,3]
[349581531,1737310234127,-500.0,0.00022328,3]
[349581532,1737310234136,-500.0,0.00022328,3]
[349581533,1737310234146,-3744.49,0.00022328,3]
[349581534,1737310234159,-500.0,0.00022328,3]
[349581535,1737310234169,-616.31733802,0.00022328,3]
[349581536,1737310234179,-500.0,0.00022328,3]
[349581537,1737310234188,-318.36728631,0.00022328,3]
[349581538,1737310234198,-261.28,0.00022328,3]
[349581539,1737310234207,-1446.99,0.00022328,3]
[349581540,1737310234220,-500.0,0.00022328,3]
[349581541,1737310234229,-500.0,0.00022328,3]
[349581542,1737310234241,-1092.18,0.00022328,3]
[349581543,1737310234251,-500.0,0.00022328,3]
[349581544,1737310234261,-369.29948177,0.00022328,3]
[349581545,1737310234270,-500.0,0.00022328,3]
[349581546,1737310234280,-500.0,0.00022328,3]
[349581547,1737310234289,-500.0,0.00022328,3]
[349581548,1737310234299,-624.27909557,0.00022328,3]
[349581549,1737310234309,-787.33,0.00022328,3]
[349581550,1737310234319,-500.0,0.00022328,3]
[349581551,1737310234329,-500.0,0.00022328,3]
[349581552,1737310234338,-500.0,0.00022373,2]
[349581553,1737310234347,-500.0,0.00022373,2]
[349581554,1737310234357,-500.0,0.00022373,2]
[349581555,1737310234366,-500.0,0.00022373,2]
[349581556,1737310234376,-321.80281838,0.00022381,2]
[349581557,1737310234386,-500.0,0.00022465,3]
[349581558,1737310234396,-501.39,0.00022465,3]
[349581559,1737310234405,-500.0,0.00022465,3]
[349581560,1737310234414,-500.0,0.00022465,3]
[349581561,1737310234424,-261.97,0.00022465,3]
[349581562,1737310234433,-443.59,0.00022465,3]
[349581563,1737310234442,-500.0,0.00022465,3]
[349581564,1737310234453,-1042.64,0.00022465,3]
[349581565,1737310234463,-761.38,0.00022465,3]
[349581566,1737310234473,-465.28,0.00022465,3]
[349581567,1737310234483,-500.0,0.00022465,3]
[349581568,1737310234492,-3744.49,0.00022465,3]
[349581569,1737310234502,-500.0,0.00022465,3]
[349581570,1737310234512,-1446.99,0.00022465,3]
[349581571,1737310234522,-500.0,0.00022465,3]
[349581572,1737310234531,-558.58624527,0.00022465,3]
[349581573,1737310234541,-1092.18,0.00022465,3]
[349581574,1737310234551,-500.0,0.00022465,3]
[349581575,1737310234561,-500.0,0.00022465,3]
[349581576,1737310234570,-500.0,0.00022465,3]
[349581577,1737310234580,-332.75727002,0.00022465,3]
[349581578,1737310234589,-787.33,0.00022465,3]
[349581579,1737310234598,-643.86,0.00022465,3]
[349581580,1737310234607,-500.0,0.00022465,3]
[349581581,1737310234617,-500.0,0.00022484,2]
[349581582,1737310234626,-500.0,0.00022486,2]
[349581583,1737310234635,-500.58195105,0.00022486,2]
[349581584,1737310234645,-1336.51,0.000225,2]
[349581585,1737310234654,-300.0,0.000225,10]
[349581586,1737310234664,-503.6779037,0.00022521,2]
[349581587,1737310234673,-500.0,0.00022535,2]
[349581588,1737310234683,-291.45,0.00022602,3]
[349581589,1737310234692,-581.87,0.00022602,3]
[349581590,1737310234702,-580.85,0.00022602,3]
[349581591,1737310234713,-500.0,0.00022602,3]
[349581592,1737310234723,-1042.64,0.00022602,3]
[349581593,1737310234733,-761.38,0.00022602,3]
[349581594,1737310234742,-500.0,0.00022602,3]
[349581595,1737310234752,-3744.49,0.00022602,3]
[349581596,1737310234762,-500.0,0.00022602,3]
[349581597,1737310234771,-1446.99,0.00022602,3]
[349581598,1737310234781,-500.0,0.00022602,3]
[349581599,1737310234790,-1092.18,0.00022602,3]
[349581600,1737310234800,-500.0,0.00022602,3]
[349581601,1737310234809,-500.0,0.00022602,3]
[349581602,1737310234818,-189.08364928,0.00022602,3]
[349581603,1737310234828,-787.33,0.00022602,3]
[349581604,1737310234837,-428.0,0.00022602,3]
[349581605,1737310234847,-500.0,0.00022739,3]
[349581606,1737310234856,-1042.64,0.00022739,3]
[349581607,1737310234865,-761.38,0.00022739,3]
[349581608,1737310234875,-500.0,0.00022739,3]
[349581609,1737310234884,-3744.49,0.00022739,3]
[349581610,1737310234894,-500.0,0.00022739,3]
[349581611,1737310234903,-1446.99,0.00022739,3]
[349581612,1737310234912,-500.0,0.00022739,3]
[349581613,1737310234921,-1092.18,0.00022739,3]
[349581614,1737310234930,-500.0,0.00022739,3]
[349581615,1737310234940,-500.0,0.00022739,3]
[349581616,1737310234949,-787.33,0.00022739,3]
[349581617,1737310234959,-157.895627,0.00022759,2]
[349581618,1737310234971,-2063.0,0.00022784,2]
[349581619,1737310234980,-479.32960302,0.00022784,2]
[349581648,1737310238189,-522.8,0.00022054,3]
[349581649,1737310238199,-0.41,0.00022784,2]
[349581652,1737310239295,-56.26039698,0.00022784,2]
[349581654,1737310239305,-500.0,0.00022876,3]
[349581655,1737310239315,-1042.64,0.00022876,3]
[349581656,1737310239324,-761.38,0.00022876,3]
[349581657,1737310239333,-500.0,0.00022876,3]
[349581658,1737310239343,-3744.49,0.00022876,3]
[349581659,1737310239353,-500.0,0.00022876,3]
[349581660,1737310239362,-1446.99,0.00022876,3]
[349581661,1737310239372,-500.0,0.00022876,3]
[349581662,1737310239382,-1092.18,0.00022876,3]
[349581663,1737310239391,-291.88562172,0.00022876,3]
[349581664,1737310239401,-500.0,0.00022876,3]
[349581665,1737310239411,-787.33,0.00022876,3]
[349581666,1737310239421,-1890.5629638,0.000229,3]
[349581667,1737310239431,-501.08370478,0.00022921,2]
[349581668,1737310239440,-357.99580065,0.00022921,2]
[349581669,1737310239450,-320.079,0.0002296,2]
[349581670,1737310239459,-1890.56296376,0.00022969,3]
[349581671,1737310239471,-6227.35957324,0.00023,7]
[349581672,1737310239481,-7438.69753278,0.00023,3]
[349581673,1737310239491,-166.40344531,0.00023012,2]
[349581674,1737310239500,-500.0,0.00023012,2]
[349581675,1737310239510,-500.0,0.00023012,2]
[349581676,1737310239520,-500.0,0.00023012,2]
[349581677,1737310239530,-500.0,0.00023012,2]
[349581678,1737310239540,-500.0,0.00023012,2]
[349581679,1737310239549,-582.70893829,0.00023012,2]
[349581680,1737310239558,-500.0,0.00023012,2]
[349581681,1737310239568,-500.0,0.00023012,2]
[349581682,1737310239578,-381.35062089,0.00023012,2]
[349581683,1737310239587,-500.0,0.00023012,2]
[349581684,1737310239597,-500.0,0.00023012,2]
[349581685,1737310239606,-500.0,0.00023012,2]
[349581686,1737310239616,-500.0,0.00023012,2]
[349581687,1737310239625,-500.0,0.00023012,2]
[349581688,1737310239635,-500.0,0.00023012,2]
[349581689,1737310239645,-500.0,0.00023012,2]
[349581690,1737310239655,-500.0,0.00023012,2]
[349581691,1737310239664,-500.0,0.00023012,2]
[349581692,1737310239675,-498.59882862,0.00023012,2]
[349581693,1737310239685,-500.0,0.00023012,2]
[349581694,1737310239694,-500.0,0.00023013,3]
[349581695,1737310239704,-1042.64,0.00023013,3]
[349581697,1737310239714,-761.38,0.00023013,3]
[349581698,1737310239725,-500.0,0.00023013,3]
[349581699,1737310239735,-3744.49,0.00023013,3]
[349581700,1737310239744,-500.0,0.00023013,3]
[349581702,1737310239843,-1446.99,0.00023013,3]
[349581703,1737310239853,-500.0,0.00023013,3]
[349581704,1737310239863,-1092.18,0.00023013,3]
[349581706,1737310239872,-500.0,0.00023013,3]
[349581707,1737310239882,-787.33,0.00023013,3]
[349581708,1737310239892,-1890.56296376,0.00023038,3]
[349581709,1737310239902,-151.0,0.000231,6]
[349581710,1737310239911,-1890.56296376,0.00023107,3]
[349581711,1737310239921,-500.0,0.0002315,3]
[349581712,1737310239931,-1042.64,0.0002315,3]
[349581713,1737310239941,-761.38,0.0002315,3]
[349581714,1737310239950,-500.0,0.0002315,3]
[349581715,1737310239959,-3744.49,0.0002315,3]
[349581716,1737310239971,-500.0,0.0002315,3]
[349581718,1737310239981,-1446.99,0.0002315,3]
[349581719,1737310239990,-500.0,0.0002315,3]
[349581720,1737310240000,-1092.18,0.0002315,3]
[349581722,1737310240009,-500.0,0.0002315,3]
[349581724,1737310240018,-787.33,0.0002315,3]
[349581726,1737310240028,-1890.56296376,0.00023176,3]
[349581727,1737310240038,-182.84531505,0.00023199,2]
[349581728,1737310240047,-500.0,0.00023199,2]
[349581729,1737310240057,-500.0,0.00023199,2]
[349581730,1737310240066,-343.66386077,0.00023199,2]
[349581731,1737310240075,-317538.5983991,0.000232,2]
[349581739,1737310240430,-500.0,0.00021917,3]
[349581741,1737310240440,-178.0,0.00022,2]
[349581742,1737310240450,-500.0,0.00022054,3]
[349581743,1737310240459,-178.0,0.00022192,2]
[349581744,1737310240469,-1645.10000171,0.000232,2]
[349581776,1737310243199,-500.0,0.00022191,3]
[349581778,1737310243208,-500.0,0.00022328,3]
[349581780,1737310243218,-500.0,0.00022465,3]
[349581782,1737310243228,-500.0,0.00022602,3]
[349581784,1737310243237,-500.0,0.00022739,3]
[349581786,1737310243247,-500.0,0.00022876,3]
[349581787,1737310243256,-453.81688075,0.00023013,3]
[349581789,1737310243265,-178.0,0.00023014,2]
[349581791,1737310243275,-502459.99680751,0.000232,2]
[349583511,1737310626175,158.018219,0.00013973,2]
[349583514,1737311125990,2492.47017738,0.00023561,120]
[349583516,1737311265011,1253.0,0.00024,120]
[349583554,1737311432639,-503.0,0.00020035,2]
[349583555,1737311432649,-500.0,0.00020337,2]
[349583556,1737311432658,-532.4682202,0.00020411,2]
[349583557,1737311432668,-300.0,0.00020415,2]
[349583558,1737311432677,-10553.01904034,0.00020416,2]
[349583559,1737311432753,-10456.89105608,0.00020416,2]
[349583560,1737311432805,-2957.20543956,0.00020416,2]
[349583561,1737311432993,-912.88446402,0.00020416,2]
[349583562,1737311433003,-186.15842,0.00020434,2]
[349583563,1737311433012,-727.5572909,0.00020516,2]
[349583564,1737311433022,-577.09453006,0.00021817,2]
[349583565,1737311433031,-460.90240155,0.00021817,2]
[349583566,1737311433041,-577.09453003,0.00021886,2]
[349583567,1737311433050,-567.51742321,0.000219,2]
[349583568,1737311433059,-163.009,0.00021917,2]
[349583569,1737311433069,-500.0,0.00021917,3]
[349583570,1737311433079,-500.0,0.00021917,3]
[349583571,1737311433089,-500.0,0.00021917,3]
[349583572,1737311433099,-500.0,0.00021917,3]
[349583573,1737311433108,-500.0,0.00021917,3]
[349583574,1737311433118,-500.0,0.00021917,3]
[349583575,1737311433128,-498.92054254,0.00021917,3]
[349583576,1737311433137,-500.0,0.00021917,3]
[349583577,1737311433147,-500.0,0.00021917,3]
[349583578,1737311433156,-459.61442199,0.00021917,3]
[349583604,1737311438252,-40.38557801,0.00021917,3]
[349583606,1737311438262,-500.0,0.00021917,3]
[349583608,1737311438272,-500.0,0.00021917,3]
[349583610,1737311438282,-500.0,0.00021917,3]
[349583612,1737311438291,-500.0,0.00021917,3]
[349583614,1737311438301,-500.0,0.00021917,3]
[349583616,1737311438310,-500.0,0.00021917,3]
[349583618,1737311438320,-500.0,0.00021917,3]
[349583620,1737311438330,-500.0,0.00021917,3]
[349583622,1737311438339,-500.0,0.00021917,3]
[349583624,1737311438349,-500.0,0.00021917,3]
[349583626,1737311438358,-500.0,0.00021917,3]
[349583628,1737311438367,-500.0,0.00021917,3]
[349583631,1737311438378,-500.0,0.00021917,3]
[349583634,1737311438387,-500.0,0.00021917,3]
[349583637,1737311438397,-315.07720878,0.00021917,3]
[349583641,1737311438406,-500.0,0.00021917,3]
[349583644,1737311438416,-500.0,0.00021917,3]
[349583647,1737311438425,-500.0,0.00021917,3]
[349583650,1737311438435,-500.0,0.00021917,3]
[349583653,1737311438444,-500.0,0.00021917,3]
[349583656,1737311438453,-500.0,0.00021917,3]
[349583659,1737311438462,-500.0,0.00021917,3]
[349583662,1737311438471,-500.0,0.00021917,3]
[349583665,1737311438481,-258.75745228,0.00021917,3]
[349583668,1737311438491,-500.0,0.00021917,3]
[349583671,1737311438501,-500.0,0.00021917,3]
[349583672,1737311438510,-500.0,0.00021917,3]
[349583676,1737311438526,-500.0,0.00021917,3]
[349583680,1737311438538,-500.0,0.00021917,3]
[349583682,1737311438547,-500.0,0.00021917,3]
[349583683,1737311438557,-245.02358355,0.00021917,3]
[349583686,1737311438567,-577.03,0.00021917,3]
[349583687,1737311438576,-500.0,0.00021917,3]
[349583689,1737311438586,-500.0,0.00021917,3]
[349583691,1737311438597,-394.21203353,0.00021917,3]
[349583693,1737311438606,-591.51,0.00021917,3]
[349583695,1737311438617,-500.0,0.00021917,3]
[349583697,1737311438626,-500.0,0.00021917,3]
[349583699,1737311438635,-500.0,0.00021917,3]
[349583702,1737311438644,-500.0,0.00021917,3]
[349583704,1737311438654,-500.0,0.00021917,3]
[349583705,1737311438663,-500.0,0.00021917,3]
[349583707,1737311438673,-500.0,0.00021917,3]
[349583710,1737311438683,-500.0,0.00021917,3]
[349583712,1737311438691,-500.0,0.00021917,3]
[349583714,1737311438701,-500.0,0.00021917,3]
[349583716,1737311438710,-500.0,0.00021917,3]
[349583717,1737311438719,-500.0,0.00021917,3]
[349583719,1737311438729,-500.0,0.00021917,3]
[349583721,1737311438740,-500.0,0.00021917,3]
[349583724,1737311438750,-500.0,0.00021917,3]
[349583725,1737311438760,-500.0,0.00021917,3]
[349583727,1737311438769,-500.0,0.00021917,3]
[349583729,1737311438778,-500.0,0.00021917,3]
[349583731,1737311438788,-500.0,0.00021917,3]
[349583734,1737311438798,-500.0,0.00021917,3]
[349583735,1737311438808,-500.0,0.00021917,3]
[349583738,1737311438817,-500.0,0.00021917,3]
[349583739,1737311438827,-500.0,0.00021917,3]
[349583741,1737311438837,-500.0,0.00021917,3]
[349583744,1737311438847,-500.0,0.00021917,3]
[349583746,1737311438856,-500.0,0.00021917,3]
[349583748,1737311438866,-500.0,0.00021917,3]
[349583750,1737311438875,-500.0,0.00021917,3]
[349583751,1737311438885,-500.0,0.00021917,3]
[349583754,1737311438895,-500.0,0.00021917,3]
[349583755,1737311438904,-673.01,0.00021917,2]
[349583758,1737311438914,-500.0,0.00021917,3]
[349583759,1737311438923,-500.0,0.00021917,3]
[349583761,1737311438933,-500.0,0.00021917,3]
[349583764,1737311438942,-500.0,0.00021917,3]
[349583766,1737311438951,-267.89,0.00021917,3]
[349583767,1737311438964,-581.02441744,0.00021917,3]
[349583770,1737311438977,-563.49,0.00021917,3]
[349583771,1737311438991,-242.59931682,0.00021917,3]
[349583774,1737311439002,-500.0,0.00021917,3]
[349583776,1737311439014,-500.0,0.00021917,3]
[349583778,1737311439025,-500.0,0.00021917,3]
[349583780,1737311439035,-3057.96,0.00021917,3]
[349583782,1737311439046,-618.64597035,0.00021917,3]
[349583784,1737311439056,-500.0,0.00021917,3]
[349583785,1737311439066,-4256.1,0.00021917,3]
[349583788,1737311439076,-500.0,0.00021917,3]
[349583789,1737311439086,-939.42,0.00021917,3]
[349583791,1737311439095,-500.0,0.00021917,3]
[349583793,1737311439104,-500.0,0.00021917,3]
[349583795,1737311439114,-500.0,0.00021917,3]
[349583797,1737311439124,-1829.97,0.00021917,3]
[349583799,1737311439136,-6847.51,0.00021917,3]
[349583802,1737311439146,-500.0,0.00021917,3]
[349583804,1737311439156,-12009.11,0.00021917,3]
[349583806,1737311439166,-500.0,0.00021917,3]
[349583808,1737311439176,-500.0,0.00021917,3]
[349583809,1737311439185,-500.0,0.00021917,3]
[349583811,1737311439197,-500.0,0.00021917,3]
[349583813,1737311439207,-500.0,0.00021917,2]
[349583815,1737311439217,-500.0,0.00021917,3]
[349583818,1737311439227,-500.0,0.00021917,3]
[349583819,1737311439236,-550.71,0.00021917,3]
[349583822,1737311439249,-1590.82,0.00021917,3]
[349583824,1737311439260,-500.0,0.00021917,3]
[349583826,1737311439269,-550.57,0.00021917,3]
[349583828,1737311439279,-961.0,0.00021917,3]
[349583830,1737311439288,-500.0,0.00021917,3]
[349583832,1737311439298,-500.0,0.00021917,3]
[349583833,1737311439307,-500.0,0.00021917,3]
[349583835,1737311439317,-500.0,0.00021917,3]
[349583837,1737311439326,-327.84753686,0.00021917,3]
[349583839,1737311439336,-604.71202485,0.00021917,3]
[349583852,1737311439447,-500.0,0.00021917,3]
[349583854,1737311439458,-6000.55564403,0.00021917,3]
[349583859,1737311439506,-1212.60435597,0.00021917,3]
[349583862,1737311439519,-1423.41,0.00021917,3]
[349583864,1737311439532,-1423.41,0.00021917,3]
[349583866,1737311439542,-1423.41,0.00021917,3]
[349583868,1737311439552,-1423.41,0.00021917,3]
[349583870,1737311439561,-1423.41,0.00021917,3]
[349583872,1737311439571,-1423.41,0.00021917,3]
[349583874,1737311439581,-1974.84,0.00021917,3]
[349583876,1737311439591,-500.0,0.00021917,3]
[349583878,1737311439601,-1116.79,0.00021917,3]
[349583880,1737311439611,-920.63,0.00021917,3]
[349583882,1737311439621,-500.0,0.00021917,3]
[349583884,1737311439630,-500.0,0.00021917,3]
[349583886,1737311439640,-1741.99,0.00021917,3]
[349583888,1737311439650,-1791.09,0.00021917,3]
[349583890,1737311439659,-1924.78,0.00021917,3]
[349583892,1737311439669,-500.0,0.00021917,3]
[349583894,1737311439679,-500.0,0.00021917,3]
[349583896,1737311439688,-500.0,0.00021917,3]
[349583898,1737311439697,-500.0,0.00021917,3]
[349583900,1737311439706,-500.0,0.00021917,3]
[349583902,1737311439716,-1093.13,0.00021917,3]
[349583904,1737311439726,-983.37,0.00021917,3]
[349583906,1737311439736,-500.0,0.00021917,3]
[349583908,1737311439747,-500.0,0.00021917,3]
[349583910,1737311439757,-980.47,0.00021917,3]
[349583912,1737311439767,-21457.73,0.00021917,3]
[349583914,1737311439776,-1948.05,0.00021917,3]
[349583916,1737311439786,-738.7,0.00021917,3]
[349583918,1737311439795,-500.0,0.00021917,3]
[349583920,1737311439804,-500.0,0.00021917,3]
[349583922,1737311439814,-603.78,0.00021917,3]
[349583924,1737311439823,-500.0,0.00021917,3]
[349583926,1737311439833,-500.0,0.00021917,3]
[349583928,1737311439843,-500.0,0.00021917,3]
[349583930,1737311439854,-500.0,0.00021917,3]
[349583932,1737311439863,-500.0,0.00021917,3]
[349583934,1737311439873,-500.0,0.00021917,3]
[349583936,1737311439883,-500.0,0.00021917,3]
[349583938,1737311439893,-266.1,0.00021917,3]
[349583940,1737311439903,-500.0,0.00021917,3]
[349583942,1737311439913,-1128.87,0.00021917,3]
[349583947,1737311439923,-500.0,0.00021917,3]
[349583951,1737311439933,-594.38,0.00021917,3]
[349583954,1737311439942,-500.0,0.00021917,3]
[349583956,1737311439952,-513.07,0.00021917,3]
[349583958,1737311439961,-760.88,0.00021917,3]
[349583959,1737311439971,-500.0,0.00021917,3]
[349583961,1737311439981,-857.61588613,0.00021926,2]
[349583962,1737311439992,-577.09453003,0.00021954,2]
[349583964,1737311440001,-466.82945435,0.00021973,2]
[349583966,1737311440011,-577.09453003,0.00022023,2]
[349583968,1737311440021,-500.0,0.00022049,2]
[349583969,1737311440031,-500.0,0.00022049,2]
[349583971,1737311440040,-500.0,0.00022049,2]
[349583973,1737311440050,-500.0,0.00022049,2]
[349583974,1737311440061,-500.0,0.00022049,2]
[349583975,1737311440071,-500.0,0.00022049,2]
[349583977,1737311440081,-500.0,0.00022049,2]
[349583978,1737311440091,-500.0,0.00022049,2]
[349583979,1737311440101,-500.0,0.00022049,2]
[349583980,1737311440110,-500.0,0.00022049,2]
[349583981,1737311440120,-500.0,0.00022049,2]
[349583982,1737311440130,-500.0,0.00022049,2]
[349583983,1737311440140,-500.0,0.00022049,2]